bitfinex-derivatives/quotes_SOLF0:USTF0_20241026
["timestamp","ask_amount","ask_price","bid_price","bid_amount"]
[1729925421088,8.24169842,168.02,167.97,2.9801]
[1729925421290,8.24169842,167.99,167.94,8.24169842]
[1729925421486,8.24169842,167.99,167.95,4.54]
[1729925421684,8.24169842,168.0,167.95,12.78169842]
[1729925423493,8.24169842,168.0,167.95,15.76209842]
[1729925427991,8.24169842,168.0,167.95,7.5204]
[1729925434389,2.9794,168.01,167.95,7.5204]
[1729925434602,8.24169842,167.99,167.95,7.5204]
[1729925437396,2.91733488,168.04,167.95,7.5204]
[1729925437397,8.24169842,168.03,167.98,2.9798]
[1729925440204,11.22069842,168.03,167.98,2.9798]
[1729925441610,8.24169842,168.03,167.99,2.9797]
[1729925442507,11.22079842,168.03,167.98,2.9799]
[1729925443504,8.24169842,168.02,167.98,2.9799]
[1729925443705,8.24169842,168.02,167.97,2.9801]
[1729925444503,8.24169842,168.0,167.97,2.9801]
[1729925444706,3.872,168.05,167.94,2.9806]
[1729925444707,2.9798,167.99,167.94,2.9806]
[1729925445007,8.24169842,167.96,167.94,2.9806]
[1729925447214,2.9796,168.0,167.94,2.9806]
[1729925447398,8.24169842,167.99,167.94,2.9806]
[1729925448210,8.24169842,167.97,167.94,2.9806]
[1729925449407,8.24169842,167.97,167.95,4.58269454]
[1729925449607,8.24169842,167.97,167.96,4.58269454]
[1729925450204,11.22129842,168.0,167.96,3.092502]
[1729925450408,11.22129842,168.0,167.95,2.9804]
[1729925451615,11.22129842,168.0,167.94,11.22229842]
[1729925452009,6.22129842,168.0,167.94,11.22229842]
[1729925452313,4.54,168.03,167.95,11.33402619]
[1729925452501,8.24169842,168.01,167.95,9.73187844]
[1729925452701,8.24169842,168.01,167.96,4.5827402]
[1729925452902,8.24169842,168.01,167.97,3.09256249]
[1729925453116,8.24169842,168.01,167.95,9.73187844]
[1729925453310,8.24169842,168.01,167.97,2.9801]
[1729925453511,8.24169842,168.01,167.98,3.09242369]
[1729925453815,4.54,168.03,167.97,2.9801]
[1729925454016,8.24169842,168.02,167.98,3.09278163]
[1729925454216,8.24169842,168.02,167.97,11.22179842]
[1729925454517,8.24169842,168.02,167.98,3.09323579]
[1729925454714,8.24169842,168.02,167.97,11.22179842]
[1729925455009,8.24169842,168.02,167.98,3.09282603]
[1729925455214,8.24169842,168.02,167.97,11.22179842]
[1729925455414,8.24169842,168.02,167.98,4.58348345]
[1729925455615,8.24169842,168.02,167.97,11.22179842]
[1729925455808,8.24169842,168.02,167.98,4.58351527]
[1729925456009,8.24169842,168.02,167.97,11.22179842]
[1729925456209,8.24169842,168.02,167.98,4.58338454]
[1729925456416,8.24169842,168.02,167.97,11.22179842]
[1729925456617,8.24169842,168.02,167.98,4.58392803]
[1729925456819,8.24169842,168.02,167.97,11.22179842]
[1729925457018,8.24169842,168.02,167.98,4.58403582]
[1729925457218,8.24169842,168.02,167.97,11.22179842]
[1729925457419,8.24169842,168.02,167.98,4.58457591]
[1729925457621,8.24169842,168.02,167.97,11.22179842]
[1729925457823,8.24169842,168.02,167.98,4.58457565]
[1729925458018,8.24169842,168.02,167.97,11.22179842]
[1729925458220,8.24169842,168.02,167.98,4.58457894]
[1729925458520,8.24169842,168.02,167.99,3.09442544]
[1729925458717,8.24169842,168.02,167.97,11.22179842]
[1729925459021,4.54,168.03,167.98,3.09529521]
[1729925459215,4.54,168.03,167.95,1.49018002]
[1729925459416,8.24169842,167.97,167.96,4.58739714]
[1729925459823,8.24169842,167.97,167.96,1.49033008]
[1729925460025,8.24169842,167.97,167.96,4.58756673]
[1729925460615,8.24169842,167.98,167.96,4.58756673]
[1729925460926,8.24169842,167.98,167.97,3.09723665]
[1729925462025,8.24169842,168.0,167.97,3.09723665]
[1729925462220,8.24169842,168.0,167.95,4.47058002]
[1729925462420,8.24169842,168.0,167.96,4.58889305]
[1729925462617,8.24169842,168.0,167.97,3.09850697]
[1729925462819,8.24169842,168.0,167.95,11.22209842]
[1729925463014,8.24169842,168.0,167.96,4.5888872]
[1729925463312,8.24169842,168.0,167.97,3.09850438]
[1729925463515,8.24169842,168.0,167.95,11.22209842]
[1729925463716,8.24169842,168.0,167.96,4.58891524]
[1729925464015,8.24169842,168.0,167.97,3.09852403]
[1729925464327,8.24169842,168.0,167.96,2.9803]
[1729925464525,8.24169842,168.0,167.97,3.09850923]
[1729925464722,8.24169842,168.0,167.96,2.9803]
[1729925464917,8.24169842,168.0,167.97,3.09847499]
[1729925465119,11.22119842,168.01,167.96,2.9803]
[1729925465420,11.22119842,168.01,167.97,3.09844398]
[1729925465722,11.22119842,168.01,167.96,2.9803]
[1729925466025,11.22119842,168.01,167.97,4.58901082]
[1729925466226,11.22119842,168.01,167.98,3.09861985]
[1729925466423,11.22119842,168.01,167.96,2.9803]
[1729925466614,11.22119842,168.01,167.97,4.58889942]
[1729925466815,11.22119842,168.01,167.96,2.9803]
[1729925467025,11.22119842,168.01,167.97,3.09857895]
[1729925467228,11.22119842,168.01,167.96,2.9803]
[1729925467415,2.9795,168.01,167.97,3.0985758]
[1729925467618,8.24169842,168.0,167.96,2.9803]
[1729925467822,8.24169842,168.0,167.97,3.09865586]
[1729925468025,8.24169842,168.0,167.96,2.9803]
[1729925468221,8.24169842,168.0,167.97,3.09867738]
[1729925468414,8.24169842,168.0,167.96,2.9803]
[1729925468620,8.24169842,168.0,167.97,4.58898987]
[1729925468919,8.24169842,168.0,167.96,2.9803]
[1729925469119,8.24169842,168.0,167.97,3.09880568]
[1729925469320,8.24169842,168.0,167.96,2.9803]
[1729925469520,8.24169842,168.0,167.97,3.09881793]
[1729925469726,8.24169842,168.0,167.96,2.9803]
[1729925470024,8.24169842,168.0,167.97,3.09880136]
[1729925470222,8.24169842,168.0,167.96,2.9803]
[1729925470412,8.24169842,168.0,167.97,3.09880948]
[1729925470616,8.24169842,168.0,167.96,2.9803]
[1729925470815,8.24169842,168.0,167.97,3.09869509]
[1729925471020,2.9792,168.02,167.96,2.9803]
[1729925471327,8.24169842,168.0,167.97,3.09868078]
[1729925471628,8.24169842,168.0,167.96,2.9803]
[1729925471827,8.24169842,168.0,167.97,3.09783325]
[1729925472132,8.24169842,168.0,167.96,2.9803]
[1729925472324,8.24169842,168.0,167.97,3.09778326]
[1729925472526,8.24169842,168.0,167.96,2.9803]
[1729925472724,8.24169842,168.0,167.97,4.58798981]
[1729925473028,8.24169842,168.0,167.96,2.9803]
[1729925473231,8.24169842,168.0,167.97,4.58802933]
[1729925473527,8.24169842,168.0,167.96,2.9803]
[1729925473728,8.24169842,168.0,167.97,4.58807053]
[1729925473928,2.9219364,168.04,167.98,11.22159842]
[1729925473929,2.9789,168.04,167.98,11.22159842]
[1729925474132,11.22059842,168.04,167.98,11.22159842]
[1729925475328,11.22059842,168.04,167.99,3.09859729]
[1729925475634,11.22059842,168.04,167.98,11.22159842]
[1729925476433,11.22059842,168.04,167.99,6.07891702]
[1729925476619,11.22059842,168.04,167.99,2.9797]
[1729925477533,8.24169842,168.03,167.99,2.9797]
[1729925477722,8.24169842,168.03,167.98,8.24169842]
[1729925477926,8.24169842,168.03,167.99,3.09927604]
[1729925478126,8.24169842,168.03,167.98,11.22159842]
[1729925478428,8.24169842,168.03,167.99,3.09931562]
[1729925478629,8.412,168.05,167.99,8.24169842]
[1729925478828,16.65369842,168.05,168.0,4.58904031]
[1729925479025,16.65369842,168.05,167.99,8.24169842]
[1729925479026,12.11369842,168.05,168.01,3.09893124]
[1729925479331,12.11369842,168.05,168.0,2.9794]
[1729925479534,12.11369842,168.05,168.01,3.09837887]
[1729925479730,12.11369842,168.05,168.0,2.9794]
[1729925480031,12.11369842,168.05,168.01,4.58838521]
[1729925480236,12.11369842,168.05,168.0,2.9794]
[1729925480425,12.11369842,168.05,168.01,3.09834101]
[1729925480625,12.11369842,168.05,168.0,2.9794]
[1729925480825,12.11369842,168.05,168.01,3.09818042]
[1729925481125,12.11369842,168.05,168.0,2.9794]
[1729925481324,12.11369842,168.05,168.01,3.09805856]
[1729925481521,8.24169842,168.04,168.0,2.9794]
[1729925481929,8.24169842,168.04,168.01,3.09839554]
[1729925482135,8.24169842,168.04,168.0,2.9794]
[1729925482328,8.24169842,168.04,168.01,3.09825219]
[1729925482633,8.24169842,168.04,168.0,2.9794]
[1729925482836,8.24169842,168.04,168.01,3.09828646]
[1729925483035,8.24169842,168.04,168.0,2.9794]
[1729925483236,8.24169842,168.04,168.01,3.09812763]
[1729925483430,8.24169842,168.04,168.0,2.9794]
[1729925483634,8.24169842,168.04,168.01,3.0983016]
[1729925483935,8.24169842,168.04,168.0,2.9794]
[1729925484124,8.24169842,168.04,168.01,3.09879019]
[1729925484436,8.24169842,168.04,168.0,2.9794]
[1729925484636,8.24169842,168.04,168.01,3.09932272]
[1729925484840,8.24169842,168.04,168.0,2.9794]
[1729925486338,8.24169842,168.01,167.93,4.54]
[1729925486643,4.54,168.03,167.94,4.59177453]
[1729925486833,8.24169842,168.01,167.95,12.83347295]
[1729925487033,8.24169842,168.01,167.95,8.24169842]
[1729925487230,8.24169842,168.01,167.96,4.59077449]
[1729925487442,8.24169842,168.01,167.97,4.59077449]
[1729925487742,8.24169842,168.01,167.98,4.59077449]
[1729925488044,8.24169842,168.01,167.99,3.10046769]
[1729925488340,4.54,168.03,167.97,11.22169842]
[1729925488543,4.54,168.03,168.01,2.9792]
[1729925488739,8.24169842,168.04,167.99,8.24169842]
[1729925488930,8.24169842,168.04,168.0,4.59002262]
[1729925489140,8.24169842,168.04,168.01,3.09992812]
[1729925489334,3.872,168.05,168.01,2.9793]
[1729925490440,3.872,168.05,168.0,8.24169842]
[1729925490943,3.872,168.05,168.01,4.58967524]
[1729925491135,17.9,168.2,168.04,8.24169842]
[1729925491336,8.24169842,168.1,168.04,8.24169842]
[1729925492241,11.21969842,168.1,168.04,11.22049842]
[1729925492436,8.24169842,168.1,168.04,8.24169842]
[1729925492944,8.24169842,168.1,168.05,2.9786]
[1729925493641,4.54,168.11,168.07,2.9783]
[1729925494237,13.72769842,168.12,168.07,11.21999842]
[1729925496045,15.75889842,168.14,168.09,8.24169842]
[1729925496238,4.54,168.15,168.09,8.24169842]
[1729925496448,4.54,168.16,168.1,8.24169842]
[1729925496635,8.24169842,168.16,168.1,11.21929842]
[1729925497139,8.24169842,168.15,168.1,2.9776]
[1729925497539,2.9771,168.14,168.09,8.24169842]
[1729925498245,8.24169842,168.15,168.09,8.24169842]
[1729925498448,11.21859842,168.16,168.1,11.21949842]
[1729925498649,4.54,168.17,168.12,8.24169842]
[1729925498845,4.54,168.17,168.13,2.9772]
[1729925499149,2.9763,168.19,168.14,8.24169842]
[1729925499150,4.52,168.19,168.14,8.24169842]
[1729925499347,8.24169842,168.2,168.14,8.24169842]
[1729925499744,185.66453799,168.21,168.15,8.24169842]
[1729925499952,193.90623641,168.21,168.15,8.24169842]
[1729925501344,196.88213641,168.21,168.16,2.9767]
[1729925502152,8.24169842,168.2,168.16,2.9767]
[1729925502843,8.24169842,168.2,168.15,2.9769]
[1729925506345,8.24169842,168.2,168.06,3.07722466]
[1729925506651,8.24169842,168.15,168.1,11.21929842]
[1729925506954,8.24169842,168.17,168.11,8.24169842]
[1729925507157,8.24169842,168.17,168.11,11.21919842]
[1729925508243,11.21829842,168.17,168.11,11.21919842]
[1729925511059,11.21829842,168.17,168.12,8.24169842]
[1729925512359,8.24169842,168.17,168.12,11.21909842]
[1729925515858,185.66453799,168.21,168.12,8.24169842]
[1729925516057,8.24169842,168.17,168.12,8.24169842]
[1729925518453,8.24169842,168.17,168.12,11.21909842]
[1729925520665,8.24169842,168.17,168.12,2.9774]
[1729925521353,8.24169842,168.17,168.11,8.24169842]
[1729925521559,8.24169842,168.18,168.13,11.21879842]
[1729925525162,8.24169842,168.18,168.13,8.24169842]
[1729925526256,8.24169842,168.17,168.13,8.24169842]
[1729925527265,11.21839842,168.17,168.11,2.9775]
[1729925527467,11.21839842,168.17,168.11,11.21919842]
[1729925528871,2.9767,168.17,168.12,8.24169842]
[1729925529066,11.21839842,168.17,168.12,8.24169842]
[1729925529979,2.9764,168.18,168.12,11.21899842]
[1729925530269,11.21809842,168.18,168.12,11.21899842]
[1729925531168,8.24169842,168.18,168.13,2.9772]
[1729925532663,8.24169842,168.18,168.13,11.21889842]
[1729925537470,181.14453799,168.21,168.09,4.52]
[1729925537471,182.79023799,168.21,168.09,4.52]
[1729925537664,191.03193641,168.21,168.15,8.24169842]
[1729925538471,188.05603641,168.21,168.15,8.24169842]
[1729925538671,2.976,168.2,168.15,8.24169842]
[1729925540177,8.24169842,168.18,168.14,2.9769]
[1729925540378,11.21809842,168.18,168.13,2.9772]
[1729925540581,8.24169842,168.17,168.13,2.9772]
[1729925541275,181.11073799,168.21,168.13,2.9772]
[1729925541469,15.73789842,168.19,168.13,11.21889842]
[1729925541869,8.24169842,168.17,168.13,2.9772]
[1729925543077,8.24169842,168.17,168.12,8.24169842]
[1729925543274,8.24169842,168.17,168.12,11.21899842]
[1729925544473,8.24169842,168.17,168.13,2.9773]
[1729925550890,11.21829842,168.17,168.11,2.9776]
[1729925551187,11.21829842,168.17,168.11,11.21929842]
[1729925551384,8.24169842,168.16,168.11,11.21929842]
[1729925551782,8.24169842,168.16,168.12,2.9774]
[1729925553689,8.24169842,168.13,168.07,3.07175895]
[1729925553890,8.24169842,168.12,168.08,8.24169842]
[1729925554084,8.24169842,168.14,168.08,8.24169842]
[1729925555194,11.21879842,168.14,168.08,11.21969842]
[1729925555384,8.24169842,168.14,168.1,8.24169842]
[1729925555590,5.794,168.15,168.1,8.24169842]
[1729925555790,14.03569842,168.15,168.1,8.24169842]
[1729925556696,17.01259842,168.15,168.1,11.21939842]
[1729925559497,17.01259842,168.15,168.1,2.9777]
[1729925566601,2.9771,168.14,168.1,2.9777]
[1729925567705,2.9771,168.14,168.09,11.21959842]
[1729925570993,7.4969,168.15,168.12,8.24169842]
[1729925571800,1.2187,168.2,168.12,8.24169842]
[1729925572104,4.52,168.19,168.15,8.24169842]
[1729925572300,2.9764,168.18,168.15,8.24169842]
[1729925576804,16.95659842,168.2,168.15,11.21849842]
[1729925577005,15.73789842,168.2,168.15,11.21849842]
[1729925577404,2.9762,168.2,168.15,11.21849842]
[1729925577602,2.9762,168.2,168.16,8.24169842]
[1729925578004,180.24073799,168.21,168.15,2.9768]
[1729925578214,180.24073799,168.21,168.17,8.24169842]
[1729925580198,177.26473799,168.21,168.15,8.24169842]
[1729925580505,11.21789842,168.19,168.14,11.21879842]
[1729925580707,8.24169842,168.17,168.06,1.2394]
[1729925581007,8.24169842,168.17,168.12,8.24169842]
[1729925581209,8.24169842,168.17,168.13,6.06899866]
[1729925581404,2.9764,168.19,168.13,11.21889842]
[1729925581405,8.24169842,168.18,168.13,11.21889842]
[1729925587315,11.21819842,168.18,168.12,2.9773]
[1729925587509,11.21819842,168.18,168.12,11.21899842]
[1729925587914,11.21829842,168.17,168.12,11.21899842]
[1729925588215,8.24169842,168.17,168.12,11.21899842]
[1729925588714,8.24169842,168.17,168.12,2.9773]
[1729925588906,8.24169842,168.17,168.12,11.21899842]
[1729925590617,8.24169842,168.14,168.09,11.21949842]
[1729925590820,8.24169842,168.14,168.1,4.58157706]
[1729925591017,8.24169842,168.14,168.09,8.24169842]
[1729925591318,8.24169842,168.14,168.1,4.58181668]
[1729925591511,8.24169842,168.14,168.11,3.09269602]
[1729925591716,8.24169842,168.14,168.1,2.9778]
[1729925592318,8.24169842,168.14,168.11,2.9774]
[1729925593825,8.24169842,168.14,168.1,2.9778]
[1729925595816,8.24169842,168.14,168.09,8.24169842]
[1729925596212,8.24169842,168.14,168.08,2.978]
[1729925596213,12.76169842,168.15,168.1,11.21939842]
[1729925596714,4.52,168.15,168.1,11.21939842]
[1729925596910,12.76169842,168.15,168.1,11.21939842]
[1729925599121,12.76169842,168.15,168.11,4.58206458]
[1729925599315,12.76169842,168.15,168.1,11.21939842]
[1729925599516,12.76169842,168.15,168.11,4.58205419]
[1729925599724,12.76169842,168.15,168.11,2.9776]
[1729925601619,15.73859842,168.15,168.11,2.9776]
[1729925602225,15.73859842,168.15,168.1,11.21949842]
[1729925602619,15.73859842,168.15,168.11,4.58208504]
[1729925602827,15.73859842,168.15,168.1,11.21949842]
[1729925603027,15.73859842,168.15,168.11,4.58207064]
[1729925603217,15.73859842,168.15,168.1,11.21949842]
[1729925603419,15.73859842,168.15,168.11,4.58209343]
[1729925603721,15.73859842,168.15,168.09,11.21959842]
[1729925603927,15.73859842,168.15,168.1,4.58275523]
[1729925604117,15.73859842,168.15,168.11,3.09359762]
[1729925604318,15.73859842,168.15,168.09,11.21959842]
[1729925604517,15.73859842,168.15,168.1,4.58294938]
[1729925604714,15.73859842,168.15,168.11,3.09379026]
[1729925604922,15.73859842,168.15,168.09,11.21959842]
[1729925605126,15.73859842,168.15,168.1,4.58323739]
[1729925605426,15.73859842,168.15,168.11,4.58323739]
[1729925605631,15.73859842,168.15,168.09,11.21959842]
[1729925605931,8.24169842,168.11,168.06,8.24169842]
[1729925606130,8.24169842,168.11,168.07,4.58520158]
[1729925606421,2.9775,168.12,168.07,11.21999842]
[1729925606621,12.76169842,168.15,168.11,8.24169842]
[1729925607017,4.52,168.15,168.11,8.24169842]
[1729925607424,4.52,168.15,168.12,8.24169842]
[1729925619727,2.9767,168.16,168.11,2.9775]
[1729925620127,8.24169842,168.15,168.11,2.9775]
[1729925621940,2.9767,168.16,168.11,2.9775]
[1729925622537,2.977,168.15,168.1,11.21939842]
[1729925622737,14.04029842,168.17,168.1,8.24169842]
[1729925624248,2.9767,168.16,168.11,2.9776]
[1729925630246,11.21839842,168.16,168.11,2.9776]
[1729925634753,177.22481834,168.21,168.14,8.24169842]
[1729925634950,177.22481834,168.21,168.14,11.21879842]
[1729925634951,4.52,168.2,168.14,11.21879842]
[1729925636252,7.4962,168.2,168.14,11.21879842]
[1729925636846,8.24169842,168.19,168.14,11.21879842]
[1729925640659,2.9766,168.17,168.12,7.4973]
[1729925640853,8.24169842,168.16,168.13,1.4889203]
[1729925641059,8.24169842,168.16,168.12,2.9773]
[1729925641262,8.24169842,168.16,168.13,4.58616936]
[1729925641459,8.24169842,168.16,168.12,2.9773]
[1729925641755,8.24169842,168.16,168.13,4.58612317]
[1729925641951,8.24169842,168.16,168.12,2.9773]
[1729925642151,8.24169842,168.16,168.13,4.58608139]
[1729925642362,8.24169842,168.16,168.12,2.9773]
[1729925642557,8.24169842,168.16,168.13,4.58612112]
[1729925642760,8.24169842,168.16,168.12,2.9773]
[1729925643055,8.24169842,168.16,168.13,4.58612109]
[1729925643255,8.24169842,168.14,168.09,2.9778]
[1729925643563,8.24169842,168.14,168.1,4.58660394]
[1729925643752,8.24169842,168.14,168.11,4.58660394]
[1729925644062,8.24169842,168.14,168.12,4.58660394]
[1729925644264,8.24169842,168.14,168.13,3.09763204]
[1729925644454,11.21879842,168.14,168.13,3.09763204]
[1729925645061,11.21879842,168.14,168.08,11.21979842]
[1729925645258,11.21879842,168.14,168.09,4.58664495]
[1729925645462,11.21879842,168.14,168.1,4.58664495]
[1729925645661,11.21879842,168.14,168.08,11.21979842]
[1729925645662,11.21879842,168.14,168.11,4.58664495]
[1729925645860,11.21879842,168.14,168.12,4.58664495]
[1729925646056,11.21879842,168.14,168.08,11.21979842]
[1729925646258,11.21879842,168.14,168.09,4.58687657]
[1729925646565,11.21879842,168.14,168.1,4.58687657]
[1729925646766,11.21879842,168.14,168.11,4.58687657]
[1729925647068,11.21879842,168.14,168.08,11.21979842]
[1729925647069,11.21879842,168.14,168.12,4.58687657]
[1729925647369,11.21879842,168.14,168.08,11.21979842]
[1729925647571,11.21879842,168.14,168.09,4.58741626]
[1729925647861,11.21879842,168.14,168.1,4.58741626]
[1729925648170,11.21879842,168.14,168.11,4.58741626]
[1729925648368,11.21879842,168.14,168.12,4.58741626]
[1729925648575,11.21879842,168.14,168.13,3.09844824]
[1729925648776,11.21879842,168.14,168.08,11.21979842]
[1729925649071,11.21879842,168.14,168.09,1.48896953]
[1729925649271,11.21879842,168.14,168.1,3.09754818]
[1729925649574,11.21879842,168.14,168.11,4.58651771]
[1729925649762,11.21879842,168.14,168.12,4.58651771]
[1729925649966,11.21879842,168.14,168.09,2.9779]
[1729925650166,8.24169842,168.14,168.1,4.58533638]
[1729925650370,4.52,168.16,168.12,11.21909842]
[1729925650766,4.52,168.16,168.13,4.58522126]
[1729925650969,12.76169842,168.16,168.08,1.2225]
[1729925651172,8.24169842,168.13,168.09,4.58452099]
[1729925651373,8.24169842,168.13,168.1,4.58452099]
[1729925651573,8.24169842,168.13,168.11,3.09556328]
[1729925651775,177.22481834,168.21,168.11,8.24169842]
[1729925651975,8.24169842,168.19,168.13,8.24169842]
[1729925652175,8.24169842,168.19,168.14,3.0952763]
[1729925652376,8.24169842,168.19,168.13,8.24169842]
[1729925652870,8.24169842,168.19,168.14,4.58409609]
[1729925653088,11.21789842,168.19,168.13,8.24169842]
[1729925653376,11.21789842,168.19,168.14,3.09522956]
[1729925653584,8.24169842,168.19,168.13,8.24169842]
[1729925653884,12.76169842,168.19,168.14,6.07223784]
[1729925654078,12.76169842,168.19,168.14,2.9771]
[1729925655282,15.73789842,168.19,168.14,2.9771]
[1729925655582,4.52,168.19,168.16,2.9767]
[1729925656183,4.52,168.19,168.14,8.24169842]
[1729925657186,4.52,168.19,168.13,8.24169842]
[1729925657385,4.52,168.19,168.14,4.58364178]
[1729925657686,8.24169842,168.2,168.13,8.24169842]
[1729925657879,12.76169842,168.2,168.14,4.58364208]
[1729925658078,12.76169842,168.2,168.13,8.24169842]
[1729925658288,12.76169842,168.2,168.15,2.9767]
[1729925659684,15.73769842,168.2,168.15,2.9767]
[1729925661889,8.24169842,168.18,168.15,2.9767]
[1729925664996,8.24169842,168.17,168.12,2.9774]
[1729925665304,8.24169842,168.17,168.13,4.58297249]
[1729925665596,8.24169842,168.17,168.12,2.9774]
[1729925665798,8.24169842,168.17,168.13,4.58347628]
[1729925665994,8.24169842,168.17,168.12,2.9774]
[1729925666191,8.24169842,168.17,168.13,4.58342947]
[1729925666495,8.24169842,168.17,168.12,2.9774]
[1729925666689,8.24169842,168.17,168.13,4.58350183]
[1729925666890,8.24169842,168.17,168.12,2.9774]
[1729925667090,8.24169842,168.17,168.13,4.58350181]
[1729925667293,8.24169842,168.17,168.12,2.9774]
[1729925667490,8.24169842,168.17,168.13,4.58348331]
[1729925667691,8.24169842,168.17,168.12,2.9774]
[1729925668193,8.24169842,168.17,168.13,4.58328565]
[1729925668389,8.24169842,168.17,168.12,2.9774]
[1729925668589,8.24169842,168.17,168.13,4.5832689]
[1729925668789,8.24169842,168.17,168.14,4.5832689]
[1729925669090,8.24169842,168.17,168.12,2.9774]
[1729925669289,8.24169842,168.17,168.13,4.58258463]
[1729925669488,8.24169842,168.17,168.14,3.09370757]
[1729925669691,8.24169842,168.17,168.12,2.9774]
[1729925669896,8.24169842,168.17,168.13,4.58302163]
[1729925670191,8.24169842,168.17,168.12,2.9774]
[1729925670392,8.24169842,168.17,168.13,4.58329386]
[1729925670597,8.24169842,168.17,168.12,2.9774]
[1729925670799,8.24169842,168.17,168.13,4.5832057]
[1729925671094,8.24169842,168.17,168.12,2.9774]
[1729925671290,8.24169842,168.17,168.13,4.58318687]
[1729925671495,8.24169842,168.17,168.12,2.9774]
[1729925671701,8.24169842,168.17,168.13,4.58316991]
[1729925671898,8.24169842,168.17,168.12,2.9774]
[1729925672096,8.24169842,168.17,168.13,1.48898075]
[1729925672287,8.24169842,168.17,168.12,2.9774]
[1729925672496,8.24169842,168.17,168.13,4.58311269]
[1729925672693,8.24169842,168.17,168.12,2.9774]
[1729925672992,8.24169842,168.17,168.13,4.58278268]
[1729925673196,8.24169842,168.17,168.12,2.9774]
[1729925673397,8.24169842,168.17,168.13,4.58214088]
[1729925673594,8.24169842,168.17,168.12,2.9774]
[1729925673801,8.24169842,168.17,168.13,4.58212926]
[1729925674004,8.24169842,168.17,168.12,2.9774]
[1729925674295,8.24169842,168.17,168.13,4.58179024]
[1729925674488,8.24169842,168.17,168.12,2.9774]
[1729925674690,8.24169842,168.17,168.13,4.58149225]
[1729925674889,8.24169842,168.17,168.12,2.9774]
[1729925675098,8.24169842,168.17,168.13,4.58148301]
[1729925675293,8.24169842,168.17,168.12,2.9774]
[1729925675488,8.24169842,168.17,168.13,3.09274942]
[1729925675691,8.24169842,168.17,168.13,2.9772]
[1729925676091,11.21829842,168.17,168.12,8.24169842]
[1729925677290,11.21829842,168.17,168.12,11.21909842]
[1729925677800,8.24169842,168.15,168.11,2.9776]
[1729925678001,8.24169842,168.15,168.12,3.09229705]
[1729925678202,8.24169842,168.15,168.11,2.9776]
[1729925678391,8.24169842,168.15,168.12,4.58158605]
[1729925678588,8.24169842,168.15,168.11,2.9776]
[1729925678801,8.24169842,168.15,168.12,3.09249465]
[1729925679203,8.24169842,168.15,168.11,2.9776]
[1729925679399,8.24169842,168.15,168.12,3.09257548]
[1729925679590,8.24169842,168.15,168.1,11.21939842]
[1729925679897,8.24169842,168.15,168.11,4.58194874]
[1729925680199,8.24169842,168.15,168.12,3.09281147]
[1729925680502,8.24169842,168.15,168.1,11.21939842]
[1729925680704,8.24169842,168.15,168.11,4.58160016]
[1729925681002,8.24169842,168.15,168.12,3.09246289]
[1729925681198,8.24169842,168.15,168.1,11.21939842]
[1729925681403,8.24169842,168.15,168.11,4.58179045]
[1729925681605,8.24169842,168.15,168.12,3.09265318]
[1729925681803,8.24169842,168.15,168.1,11.21939842]
[1729925682107,8.24169842,168.15,168.11,4.58180694]
[1729925682307,8.24169842,168.15,168.12,3.09266967]
[1729925682507,8.24169842,168.15,168.1,11.21939842]
[1729925682702,8.24169842,168.15,168.11,4.58221739]
[1729925682898,8.24169842,168.15,168.12,3.09305359]
[1729925683102,8.24169842,168.15,168.1,11.21939842]
[1729925683301,8.24169842,168.15,168.11,4.58223242]
[1729925683501,8.24169842,168.15,168.12,3.09306862]
[1729925683696,8.24169842,168.15,168.1,11.21939842]
[1729925683903,8.24169842,168.15,168.11,4.58202863]
[1729925684106,8.24169842,168.15,168.12,3.09286483]
[1729925684416,8.24169842,168.15,168.1,11.21939842]
[1729925684603,8.24169842,168.15,168.11,4.58188069]
[1729925684803,8.24169842,168.15,168.12,3.09271689]
[1729925685004,8.24169842,168.15,168.1,11.21939842]
[1729925685200,8.24169842,168.15,168.11,4.58192664]
[1729925685411,8.24169842,168.15,168.12,3.09276133]
[1729925685710,8.24169842,168.15,168.1,11.21939842]
[1729925685909,8.24169842,168.15,168.11,4.58195448]
[1729925686104,2.9767,168.16,168.12,3.09280244]
[1729925686300,4.5,168.17,168.12,8.24169842]
[1729925686505,12.74169842,168.17,168.13,8.24169842]
[1729925686818,12.74169842,168.17,168.13,11.21899842]
[1729925687002,177.22481834,168.21,168.15,8.24169842]
[1729925687003,2.9761,168.2,168.15,8.24169842]
[1729925687208,4.5,168.19,168.15,8.24169842]
[1729925688408,4.5,168.19,168.15,11.21859842]
[1729925690908,4.5,168.19,168.15,2.9769]
[1729925691211,12.74169842,168.19,168.15,2.9769]
[1729925692607,334.75732481,168.34,168.18,2.9763]
[1729925692821,8.24169842,168.23,168.18,2.9763]
[1729925694319,11.21719842,168.23,168.18,2.9763]
[1729925697916,8.24169842,168.24,168.19,8.24169842]